bitfinex/quotes_SOLUSD_20250429
["timestamp","ask_amount","ask_price","bid_price","bid_amount"]
[1745942096678,54.14529108,148.25,148.24,0.063]
[1745942102520,15.43027966,148.23,148.22,0.063]
[1745942102917,22.17655234,148.23,148.22,0.063]
[1745942103916,0.14216157,148.23,148.22,0.063]
[1745942109603,40.8262012,148.23,148.22,0.063]
[1745942111299,101.69181043,148.21,148.19,0.063]
[1745942111525,47.39992852,148.2,148.19,0.063]
[1745942113531,54.14756684,148.2,148.19,0.063]
[1745942116429,69.43568493,148.2,148.19,0.063]
[1745942116632,54.14756684,148.2,148.19,0.063]
[1745942124444,13.32,148.2,148.19,15.35111809]
[1745942124634,0.14216157,148.22,148.19,15.35111809]
[1745942124818,6.88893739,148.22,148.19,15.35111809]
[1745942125023,22.17705548,148.22,148.19,0.063]
[1745942129343,22.17705548,148.22,148.19,0.063]
[1745942129838,0.14216157,148.22,148.19,15.35111809]
[1745942132638,0.14216157,148.22,148.2,15.28811809]
[1745942133840,82.9,148.21,148.2,15.28811809]
[1745942136142,82.9,148.21,148.19,15.35111809]
[1745942136546,82.9,148.21,148.19,22.09919555]
[1745942139542,82.9,148.2,148.19,22.09919555]
[1745942144646,82.9,148.23,148.19,22.09919555]
[1745942144852,82.9,148.23,148.21,15.28811809]
[1745942145648,82.9,148.23,148.22,15.28811809]
[1745942145950,82.9,148.23,148.22,22.03484592]
[1745942151153,82.9,148.23,148.22,15.28811809]
[1745942153665,82.9,148.23,148.22,9.79169308]
[1745942156564,82.9,148.23,148.22,16.53842091]
[1745942157875,82.9,148.23,148.22,9.79169308]
[1745942159147,82.9,148.23,148.21,9.79169308]
[1745942159761,82.9,148.23,148.22,9.79169308]
[1745942161563,82.9,148.23,148.22,48.03997511]
[1745942164362,82.9,148.23,148.22,15.29324728]
[1745942165166,82.9,148.23,148.2,22.0406064]
[1745942165965,82.9,148.22,148.2,15.29324728]
[1745942166267,22.0390976,148.24,148.19,6.8109085]
[1745942166268,82.9,148.21,148.19,22.10415578]
[1745942166767,82.9,148.21,148.19,15.35624728]
[1745942166968,82.9,148.21,148.19,0.063]
[1745942167464,82.9,148.21,148.19,15.35624728]
[1745942167669,82.9,148.21,148.19,22.10431698]
[1745942171373,82.9,148.21,148.2,15.29324728]
[1745942172056,82.9,148.21,148.19,22.10431698]
[1745942174475,82.9,148.21,148.2,15.29324728]
[1745942181472,82.9,148.21,148.19,16.60629539]
[1745942184779,113.04043612,148.2,148.19,0.063]
[1745942185092,30.14043612,148.2,148.19,0.063]
[1745942185459,76.98851013,148.2,148.19,0.063]
[1745942186292,82.85316157,148.17,148.16,0.063]
[1745942186585,15.46381142,148.17,148.16,0.063]
[1745942187190,34.11346028,148.17,148.16,0.063]
[1745942188493,40.8624648,148.17,148.16,0.063]
[1745942194584,18.79181043,148.17,148.16,0.063]
[1745942195199,34.11346028,148.17,148.16,0.063]
[1745942195598,40.8624648,148.17,148.16,0.063]
[1745942198800,18.79181043,148.17,148.16,0.063]
[1745942199299,34.11346028,148.17,148.16,0.063]
[1745942199598,40.8624648,148.17,148.16,0.063]
[1745942205277,0.14216157,148.17,148.16,0.063]
[1745942209899,9.944553,148.17,148.16,0.063]
[1745942211489,16.69355752,148.17,148.16,0.063]
[1745942213985,35.34320638,148.17,148.16,0.063]
[1745942219936,25.54081495,148.17,148.16,0.063]
[1745942220224,35.34320638,148.17,148.16,0.063]
[1745942221433,28.59420186,148.17,148.16,0.063]
[1745942221927,35.34320638,148.17,148.16,0.063]
[1745942225209,40.79867523,148.17,148.16,0.063]
[1745942225926,74.88377523,148.17,148.16,1e-08]
[1745942227623,80.41009168,148.17,148.16,1e-08]
[1745942227924,83.87145751,148.17,148.16,1e-08]
[1745942228106,34.12051831,148.16,148.14,0.063]
[1745942228309,60.12051831,148.15,148.14,0.063]
[1745942228709,143.02051831,148.15,148.14,0.063]
[1745942229040,44.79181043,148.14,148.13,0.063]
[1745942229334,75.44922619,148.14,148.12,0.063]
[1745942229530,62.72922619,148.13,148.12,0.063]
[1745942230236,69.48005316,148.13,148.12,0.063]
[1745942230826,69.48005316,148.13,148.12,1e-08]
[1745942231029,18.79181043,148.08,148.07,0.063]
[1745942231217,34.12051831,148.08,148.07,0.063]
[1745942233227,40.87362473,148.08,148.07,0.063]
[1745942235030,54.15362473,148.08,148.07,0.063]
[1745942235930,82.97916157,148.06,148.04,0.063]
[1745942236135,98.30786945,148.06,148.04,0.063]
[1745942236833,101.62881043,148.06,148.04,0.063]
[1745942237139,82.837,148.06,148.04,15.39170788]
[1745942237449,82.837,148.06,148.05,22.14618271]
[1745942238019,82.837,148.06,148.05,6.81747483]
[1745942238526,82.837,148.06,148.05,0.063]
[1745942238924,82.837,148.06,148.05,6.81747483]
[1745942239115,82.837,148.06,148.05,0.063]
[1745942239820,82.837,148.06,148.05,6.81747483]
[1745942241245,82.837,148.06,148.05,22.14618271]
[1745942241447,82.837,148.09,148.05,22.14618271]
[1745942241635,82.837,148.09,148.07,15.32870788]
[1745942242333,82.837,148.09,148.06,15.32870788]
[1745942243542,82.837,148.09,148.06,22.08252514]
[1745942245233,82.837,148.08,148.06,22.08252514]
[1745942245544,98.16570788,148.08,148.05,6.81733159]
[1745942245726,82.837,148.08,148.05,22.14603947]
[1745942247919,82.837,148.08,148.06,15.32870788]
[1745942248429,82.837,148.08,148.07,15.32870788]
[1745942250270,82.837,148.08,148.07,22.08227038]
[1745942251324,82.837,148.14,148.08,6.285]
[1745942251619,82.837,148.14,148.13,15.32870788]
[1745942252553,82.837,148.14,148.13,22.07953485]
[1745942253248,82.837,148.14,148.13,15.32870788]
[1745942256949,0.17216157,148.15,148.13,15.32870788]
[1745942258147,6.92251735,148.15,148.13,15.32870788]
[1745942258332,6.92251735,148.15,148.12,15.32870788]
[1745942260465,0.14216157,148.13,148.09,1.5464]
[1745942260622,0.14216157,148.13,148.07,26.0]
[1745942260623,82.9,148.12,148.07,26.0]
[1745942260956,98.37086945,148.11,148.05,8.45332921]
[1745942261133,82.9,148.1,148.07,15.32870788]
[1745942261629,0.14216157,148.09,148.07,15.32870788]
[1745942261952,0.14216157,148.09,148.06,15.32870788]
[1745942262335,6.89502577,148.09,148.06,15.32870788]
[1745942263854,6.89502577,148.09,148.05,1.6989]
[1745942264028,6.89502577,148.09,148.06,15.32870788]
[1745942265554,22.22373365,148.09,148.05,15.39170788]
[1745942265725,82.9,148.08,148.05,15.39170788]
[1745942265926,82.9,148.07,148.05,15.39170788]
[1745942268557,89.6536127,148.07,148.05,15.39170788]
[1745942268849,82.9,148.06,148.05,0.063]
[1745942270236,6.7536127,148.07,148.05,0.063]
[1745942270660,0.14216157,148.06,148.05,0.063]
[1745942271057,5.15959537,148.06,148.05,0.063]
[1745942271353,5.0174338,148.06,148.05,15.39170788]
[1745942272047,10.03369816,148.06,148.05,15.39170788]
[1745942272868,5.0174338,148.06,148.05,15.39170788]
[1745942273057,5.0174338,148.06,148.05,22.14618271]
[1745942273444,5.0174338,148.08,148.05,22.14618271]
[1745942273752,5.0174338,148.08,148.07,15.32870788]
[1745942275135,6.75294265,148.09,148.06,15.32870788]
[1745942275958,6.75294265,148.09,148.07,15.32870788]
[1745942278945,6.75294265,148.09,148.06,15.32870788]
[1745942280465,82.9,148.07,148.06,15.32870788]
[1745942281263,103.07455322,148.1,148.06,15.32870788]
[1745942281470,96.32216157,148.1,148.07,15.32870788]
[1745942281767,103.07454408,148.1,148.07,15.32870788]
[1745942282369,103.07454408,148.1,148.08,15.32870788]
[1745942283973,96.18,148.1,148.09,15.32870788]
[1745942284172,96.18,148.1,148.08,15.32870788]
[1745942284465,15.47086945,148.09,148.05,0.063]
[1745942284765,15.32870788,148.07,148.05,0.063]
[1745942285443,89.65401864,148.06,148.05,0.063]
[1745942285747,104.98272652,148.06,148.05,0.063]
[1745942286151,82.9,148.06,148.05,0.063]
[1745942288674,82.9,148.06,148.05,15.39170788]
[1745942301294,82.9,148.06,148.05,0.063]
[1745942302089,82.9,148.06,148.05,15.39170788]
[1745942303794,82.9,148.06,148.05,0.063]
[1745942304379,105.12488809,148.06,148.05,0.063]
[1745942304600,123.77453695,148.06,148.05,0.063]
[1745942304994,128.81558672,148.06,148.05,0.063]
[1745942306900,45.91558672,148.06,148.05,0.063]
[1745942307603,39.16156808,148.06,148.05,0.063]
[1745942307921,23.8328602,148.06,148.05,0.063]
[1745942310219,18.79181043,148.06,148.05,0.063]
[1745942310421,23.83585542,148.06,148.05,0.063]
[1745942310718,23.83595604,148.06,148.05,0.063]
[1745942311689,18.79181043,148.06,148.05,0.063]
[1745942311892,23.83586964,148.06,148.05,0.063]
[1745942312913,5.18622078,148.06,148.05,0.063]
[1745942314590,5.04405921,148.06,148.05,0.063]
[1745942321707,5.04405921,148.06,148.05,15.39170788]
[1745942323428,5.04405921,148.06,148.05,22.14618271]
[1745942324019,25.54405357,148.1,148.05,22.14618271]
[1745942324222,83.04216157,148.09,148.07,15.32870788]
[1745942327035,83.04216157,148.09,148.06,15.32870788]
[1745942327326,82.9,148.08,148.05,22.14597691]
[1745942327906,82.9,148.08,148.06,15.32870788]
[1745942329728,82.9,148.08,148.07,15.32870788]
[1745942330519,82.9,148.08,148.07,22.08227038]
[1745942333121,82.9,148.08,148.07,6.7535625]
[1745942333325,82.9,148.1,148.07,22.08227038]
[1745942334536,82.9,148.1,148.09,15.32870788]
[1745942335742,82.9,148.1,148.09,22.08135829]
[1745942340010,0.03,148.13,148.09,38.96298432]
[1745942340213,0.03,148.13,148.12,15.32870788]
[1745942340636,0.03,148.13,148.12,22.07999062]
[1745942341521,0.03,148.13,148.1,6.75219446]
[1745942341718,0.03,148.13,148.1,22.08090234]
[1745942341924,0.03,148.13,148.11,15.32870788]
[1745942342436,0.03,148.13,148.12,15.32870788]
[1745942346739,0.03,148.13,148.12,22.07999062]
[1745942350351,0.03,148.13,148.12,15.32870788]
[1745942350538,0.03,148.13,148.11,15.32870788]
[1745942351434,0.03,148.13,148.09,6.75246312]
[1745942351658,82.9,148.12,148.11,15.32870788]
[1745942351950,82.9,148.12,148.09,6.75246312]
[1745942352154,82.9,148.12,148.11,15.32870788]
[1745942353351,82.9,148.12,148.07,44.50251878]
[1745942353534,82.9,148.12,148.08,6.75310642]
[1745942353737,82.9,148.12,148.1,15.32870788]
[1745942354257,82.9,148.12,148.11,15.32870788]
[1745942355066,82.9,148.12,148.11,22.08044645]
[1745942355361,82.9,148.12,148.11,15.32870788]
[1745942357857,82.9,148.12,148.1,6.75216238]
[1745942358155,82.9,148.12,148.11,15.32870788]
[1745942358857,82.9,148.12,148.1,15.32870788]
[1745942362565,82.9,148.12,148.1,22.08081413]
[1745942362865,82.9,148.12,148.11,15.32870788]
[1745942363462,82.9,148.11,148.08,6.75310642]
[1745942363761,82.9,148.11,148.1,15.32870788]
[1745942368072,82.9,148.11,148.1,22.08090234]
[1745942368468,82.9,148.11,148.1,15.32870788]
[1745942370843,82.9,148.11,148.08,6.75295819]
[1745942371046,82.9,148.11,148.09,15.32870788]
[1745942371344,82.9,148.11,148.1,15.32870788]
[1745942372768,82.9,148.11,148.1,22.08090234]
[1745942374883,82.93,148.13,148.1,22.08090234]
[1745942375058,82.93,148.13,148.12,15.32870788]
[1745942379479,82.93,148.13,148.12,22.07999062]
[1745942381675,82.93,148.13,148.1,6.75219446]
[1745942381872,82.93,148.13,148.1,22.08090234]
[1745942382074,82.93,148.13,148.11,15.32870788]
[1745942382578,83.04216157,148.12,148.06,6.75401864]
[1745942382765,82.9,148.11,148.08,15.32870788]
[1745942383679,82.9,148.11,148.08,9.81071371]
[1745942384369,82.9,148.11,148.1,9.81071371]
[1745942385271,82.9,148.11,148.09,9.81071371]
[1745942385471,82.9,148.11,148.09,15.32696469]
[1745942387590,82.9,148.11,148.1,15.32696469]
[1745942391076,82.9,148.11,148.1,22.07915915]
[1745942394787,82.93,148.13,148.1,22.07915915]
[1745942395172,82.93,148.13,148.12,15.32696469]
[1745942396392,82.93,148.13,148.11,15.32696469]
[1745942397271,82.93,148.13,148.11,22.07863782]
[1745942397472,82.93,148.13,148.12,15.32696469]
[1745942398073,82.93,148.13,148.11,15.32696469]
[1745942398274,82.93,148.13,148.1,15.32696469]
[1745942398480,82.93,148.13,148.08,6.75310642]
[1745942398481,82.93,148.13,148.12,15.32696469]
[1745942399298,82.93,148.13,148.12,22.07824743]
[1745942400875,82.93,148.13,148.12,6.75128274]
[1745942401075,82.93,148.13,148.12,22.07824743]
[1745942402889,82.93,148.13,148.12,15.32696469]
[1745942404899,82.93,148.13,148.12,22.07824743]
[1745942405087,82.93,148.13,148.12,15.32696469]
[1745942405492,82.93,148.13,148.1,6.75219446]
[1745942405688,82.93,148.13,148.09,22.07948408]
[1745942406002,15.46912626,148.11,148.07,15.32696469]
[1745942406200,98.22696469,148.1,148.06,15.32696469]
[1745942406580,82.9,148.1,148.07,15.32696469]
[1745942406998,89.6524864,148.1,148.07,15.32696469]
[1745942407393,82.9,148.1,148.07,15.32696469]
[1745942408013,82.9,148.1,148.06,6.75396115]
[1745942408189,82.9,148.1,148.07,15.32696469]
[1745942409202,0.14216157,148.07,148.05,0.063]
[1745942409405,15.46912626,148.06,148.05,0.063]
[1745942409819,5.04234918,148.06,148.05,0.063]
[1745942411007,22.08049457,148.08,148.05,0.063]
[1745942411715,5.03826024,148.07,148.05,0.063]
[1745942412597,15.32696469,148.07,148.05,0.063]
[1745942412791,22.08049457,148.08,148.05,0.063]
[1745942413594,13.24,148.09,148.07,15.32696469]
[1745942413999,13.24,148.09,148.06,15.32696469]
[1745942414196,5.03471224,148.08,148.06,15.32696469]
[1745942414612,5.03471224,148.08,148.05,15.38996469]
[1745942415514,27.11478433,148.08,148.05,0.063]
[1745942415913,5.03471224,148.08,148.06,15.32696469]
[1745942416412,11.78794042,148.08,148.06,15.32696469]
[1745942416616,11.78794042,148.08,148.05,0.063]
[1745942416993,11.78794042,148.08,148.05,15.38996469]
[1745942417308,6.75322818,148.08,148.05,15.38996469]
[1745942417631,102.89271221,148.09,148.06,15.32696469]
[1745942418092,118.2196769,148.09,148.05,0.063]
[1745942418293,15.32696469,148.07,148.05,0.063]
[1745942418894,15.32696469,148.08,148.05,0.063]
[1745942419099,102.89271221,148.09,148.05,15.38996469]
[1745942419299,102.89271221,148.09,148.06,15.32696469]
[1745942419728,102.89271221,148.09,148.05,15.38996469]
[1745942420209,102.89271221,148.09,148.06,15.32696469]
[1745942420612,102.89271221,148.09,148.05,0.063]
[1745942420613,96.14,148.09,148.07,15.32696469]
[1745942420914,118.2196151,148.09,148.05,15.38996469]
[1745942421120,118.2196151,148.09,148.05,0.063]
[1745942421325,118.2196151,148.09,148.05,15.38996469]
[1745942422195,102.89265041,148.09,148.05,15.38996469]
[1745942422518,118.2196151,148.09,148.05,15.38996469]
[1745942423115,15.32696469,148.08,148.05,0.063]
[1745942423522,22.08033717,148.08,148.05,0.063]
[1745942424207,82.9,148.07,148.05,0.063]
[1745942424624,89.65386363,148.07,148.05,0.063]
[1745942425123,82.9,148.07,148.05,0.063]
[1745942425321,82.9,148.1,148.05,15.38996469]
[1745942425522,82.9,148.1,148.09,15.32696469]
[1745942425824,82.9,148.1,148.08,15.32696469]
[1745942426720,82.9,148.1,148.09,15.32696469]
[1745942427091,82.9,148.12,148.09,15.32696469]
[1745942427313,82.9,148.12,148.1,15.32696469]
[1745942427920,89.65144974,148.12,148.06,8.40747657]
[1745942428225,82.93,148.13,148.11,15.32696469]
[1745942428401,82.93,148.13,148.12,15.32696469]
[1745942429106,82.93,148.13,148.09,26.0]
[1745942429303,82.93,148.13,148.1,15.32696469]
[1745942429618,82.93,148.13,148.11,15.32696469]
[1745942430396,0.03,148.13,148.12,15.32696469]
[1745942430995,15.35696469,148.13,148.09,15.32696469]
[1745942431601,82.9,148.12,148.08,15.32696469]
[1745942431823,82.9,148.12,148.07,6.75354419]
[1745942432030,82.9,148.12,148.1,15.32696469]
[1745942433202,98.22696469,148.12,148.07,6.75310791]
[1745942433417,98.22696469,148.12,148.08,15.32696469]
[1745942433721,82.9,148.12,148.08,15.32696469]
[1745942434529,104.97829452,148.12,148.08,15.32696469]
[1745942435626,0.14216157,148.08,148.05,0.063]
[1745942435836,15.32696469,148.06,148.05,0.063]
[1745942436914,15.46912626,148.06,148.05,0.063]
[1745942437327,34.11877512,148.06,148.05,0.063]
[1745942437526,40.87279376,148.06,148.05,0.063]
[1745942437714,50.10462576,148.06,148.05,0.063]
[1745942438335,55.12879712,148.06,148.05,0.063]
[1745942442117,36.47914826,148.06,148.05,0.063]
[1745942442742,29.72512962,148.06,148.05,0.063]
[1745942444648,29.58296805,148.06,148.05,0.063]
[1745942444825,5.02417136,148.06,148.05,0.063]
[1745942445018,5.02417136,148.06,148.05,24.62179669]
[1745942445522,5.02417136,148.06,148.05,0.063]
[1745942447044,121.29879669,148.08,148.05,6.81747483]
[1745942447551,96.74,148.08,148.05,31.37627152]
[1745942449441,82.9,148.08,148.06,24.55879669]
[1745942449638,82.9,148.08,148.07,24.55879669]
[1745942451444,82.9,148.08,148.07,31.31235919]
[1745942451651,82.9,148.12,148.07,31.31235919]
[1745942451851,82.9,148.12,148.11,24.55879669]
[1745942452143,0.03,148.13,148.11,24.55879669]
[1745942452349,5.06480599,148.13,148.11,24.55879669]
[1745942452524,87.96480599,148.13,148.11,24.55879669]
[1745942452724,82.93,148.13,148.11,24.55879669]
[1745942453921,82.93,148.13,148.1,31.31059416]
[1745942456043,107.48879669,148.13,148.09,31.31141381]
[1745942456346,24.55879669,148.1,148.06,6.75388573]
[1745942456650,82.9,148.12,148.05,0.063]
[1745942456651,107.45879669,148.09,148.05,0.063]
[1745942456850,24.55879669,148.07,148.05,0.063]
[1745942457539,107.45879669,148.08,148.05,0.063]
[1745942458069,82.9,148.08,148.05,24.62179669]
[1745942458357,82.9,148.08,148.06,24.55879669]
[1745942459241,82.9,148.08,148.06,31.31254009]
[1745942461245,82.9,148.12,148.07,24.55879669]
[1745942461451,82.9,148.12,148.11,24.55879669]
[1745942461653,0.03,148.13,148.11,24.55879669]
[1745942461959,0.03,148.13,148.12,24.55879669]
[1745942462661,0.03,148.13,148.11,24.55879669]
[1745942463459,0.03,148.13,148.12,31.31007943]
[1745942465234,0.03,148.13,148.11,24.55879669]
[1745942465573,107.45879669,148.12,148.07,6.75336512]
[1745942465759,24.55879669,148.09,148.06,6.75386714]
[1745942466067,24.55879669,148.1,148.06,31.31266383]
[1745942467454,82.9,148.11,148.08,24.55879669]
[1745942467634,82.9,148.11,148.09,24.55879669]
[1745942467837,82.9,148.11,148.06,6.75386714]
[1745942467838,82.9,148.11,148.08,24.55879669]
[1745942468255,24.55879669,148.1,148.06,31.31266383]
[1745942468555,82.9,148.1,148.07,24.55879669]
[1745942469137,82.9,148.1,148.07,31.31223913]
[1745942469937,82.9,148.1,148.09,24.55879669]
[1745942470465,82.9,148.1,148.08,24.55879669]
[1745942470642,107.45879669,148.1,148.06,31.3126345]
[1745942473676,107.45879669,148.1,148.05,6.81747483]
[1745942473964,82.9,148.1,148.06,24.55879669]
[1745942474764,82.9,148.1,148.05,6.81747483]
[1745942474942,82.9,148.1,148.07,24.55879669]
[1745942475140,82.9,148.1,148.05,31.37613421]
[1745942475141,24.55879669,148.09,148.05,31.37613421]
[1745942475361,24.55879669,148.09,148.05,0.063]
[1745942475551,24.55879669,148.08,148.05,6.81747068]
[1745942475962,24.55879669,148.09,148.05,6.81747068]
[1745942476173,107.45879669,148.1,148.06,24.55879669]
[1745942476670,82.9,148.1,148.06,24.55879669]
[1745942477171,82.9,148.1,148.06,31.3126902]
[1745942477365,114.21104012,148.1,148.06,31.3126902]
[1745942477569,24.55879669,148.09,148.06,6.75389351]
[1745942478369,89.65224343,148.1,148.06,6.75389351]
[1745942478370,82.9,148.1,148.06,6.75389351]
[1745942478671,107.45879669,148.1,148.06,6.75389351]
[1745942478872,114.2110326,148.1,148.06,6.75389351]
[1745942479165,114.2110326,148.1,148.06,24.55879669]
[1745942479544,114.2110326,148.1,148.05,24.62179669]
[1745942479757,24.55879669,148.09,148.05,24.62179669]
[1745942480073,82.9,148.08,148.05,24.62179669]
[1745942481271,82.9,148.08,148.05,31.3759384]
[1745942482144,82.9,148.08,148.06,24.55879669]
[1745942482447,82.9,148.08,148.07,24.55879669]
[1745942482763,82.9,148.11,148.07,24.55879669]
[1745942483082,82.9,148.11,148.09,24.55879669]
[1745942483371,82.9,148.11,148.1,24.55879669]
[1745942484358,82.9,148.11,148.1,31.31099115]
[1745942485083,0.03,148.13,148.1,31.31099115]
[1745942485747,0.03,148.13,148.11,24.55879669]
[1745942486261,0.03,148.13,148.12,24.55879669]
[1745942487659,0.03,148.13,148.12,31.31007943]
[1745942488185,0.03,148.13,148.12,55.86887612]
[1745942488679,0.03,148.13,148.12,31.31007943]
[1745942489075,0.03,148.13,148.12,74.51852498]
[1745942489367,0.03,148.13,148.12,75.86843329]
[1745942491653,1e-08,148.13,148.12,89.48843329]
[1745942491867,1e-08,148.13,148.12,91.06093329]
[1745942492476,0.03,148.14,148.12,91.06093329]
[1745942492477,1e-08,148.14,148.13,24.75844886]
[1745942492685,1e-08,148.14,148.13,49.31724555]
[1745942492867,1e-08,148.14,148.13,49.45940712]
[1745942493588,0.03,148.15,148.14,51.40002013]
[1745942493792,0.03,148.15,148.14,77.30824167]
[1745942495686,1e-08,148.16,148.15,44.64964886]
[1745942495877,1e-08,148.16,148.15,151.00844555]
[1745942496199,1e-08,148.16,148.15,126.44964886]
[1745942496372,1e-08,148.16,148.15,151.00844555]
[1745942497288,1e-08,148.16,148.15,157.75836117]
[1745942505795,1e-08,148.16,148.15,148.50281822]
[1745942506182,1e-08,148.19,148.18,18.79181043]
[1745942506375,1e-08,148.19,148.18,146.1673128]
[1745942506702,1e-08,148.2,148.18,144.81831791]
[1745942506872,0.03,148.25,148.23,26.0]
[1745942507068,0.03,148.25,148.24,50.60477629]
[1745942507280,0.03,148.28,148.25,18.64964886]
[1745942507498,0.03,148.28,148.25,74.3014109]
[1745942508193,0.03,148.28,148.25,31.1985623]
[1745942509894,0.03,148.28,148.25,55.65176204]
[1745942510105,0.03,148.28,148.25,31.1985623]
[1745942510590,0.03,148.28,148.25,6.74536256]
[1745942510777,0.03,148.28,148.25,31.1985623]
[1745942514185,24.48319974,148.28,148.24,31.19884217]
[1745942514895,24.48319974,148.28,148.25,24.45319974]
[1745942515282,24.48319974,148.27,148.23,6.74607684]
[1745942515506,24.48319974,148.27,148.23,31.19927658]
[1745942515813,24.48319974,148.27,148.25,24.45319974]
[1745942515814,0.03,148.27,148.25,24.45319974]
[1745942517583,0.03,148.27,148.25,31.1985623]
[1745942519084,0.03,148.27,148.24,24.45319974]
[1745942519289,24.48319974,148.27,148.24,26.0]
[1745942520608,24.48319974,148.27,148.24,32.74569384]
[1745942520903,24.48319974,148.27,148.23,6.7460837]
[1745942521108,24.48319974,148.27,148.23,31.19928344]
[1745942521808,26.13119974,148.26,148.22,31.19990608]
[1745942521985,24.45319974,148.24,148.2,31.20083806]
[1745942522193,24.45319974,148.22,148.19,20.36796533]
[1745942522395,24.45319974,148.23,148.19,31.20116507]
[1745942523095,24.45319974,148.22,148.19,6.74796533]
[1745942523685,24.45319974,148.22,148.18,57.20155736]
[1745942524493,24.45319974,148.22,148.19,24.45319974]
[1745942524810,24.45319974,148.23,148.19,24.45319974]
[1745942525112,24.45319974,148.24,148.2,24.45319974]
[1745942525489,24.45319974,148.23,148.19,24.45319974]
[1745942526200,24.45319974,148.24,148.2,24.45319974]
[1745942527910,24.45319974,148.24,148.2,31.20058858]
[1745942528085,24.45319974,148.24,148.18,26.0]
[1745942528086,24.45319974,148.23,148.19,31.20113603]
[1745942528597,24.45319974,148.21,148.17,0.063]
[1745942528797,24.45319974,148.19,148.17,0.063]
[1745942529200,1.6332,148.2,148.17,0.063]
[1745942529510,26.08639974,148.2,148.17,0.063]
[1745942531013,24.45319974,148.19,148.17,0.063]
[1745942532395,24.45319974,148.18,148.17,0.063]
[1745942534399,24.45319974,148.19,148.17,0.063]
[1745942534815,1.6332,148.2,148.18,24.45319974]
[1745942535198,24.59536131,148.23,148.19,24.45319974]
[1745942535699,24.45319974,148.22,148.18,24.45319974]
[1745942536098,24.45319974,148.22,148.18,31.20151077]
[1745942537322,31.19996936,148.22,148.18,24.45319974]
[1745942537822,24.45319974,148.21,148.17,31.26503404]
[1745942538219,24.45319974,148.21,148.18,24.45319974]
[1745942538720,24.45319974,148.19,148.17,0.063]
[1745942538909,24.45319974,148.18,148.17,0.063]
[1745942539324,24.45319974,148.19,148.17,0.063]
[1745942540211,31.20144173,148.19,148.17,0.063]
[1745942540410,24.45319974,148.18,148.17,0.063]
[1745942542225,31.2017488,148.18,148.17,0.063]
[1745942542533,24.45319974,148.18,148.17,0.063]
[1745942544113,31.2017488,148.18,148.17,0.063]
[1745942544624,24.45319974,148.18,148.17,0.063]
[1745942548231,24.45319974,148.19,148.17,0.063]
[1745942548422,24.45319974,148.2,148.17,24.51619974]
[1745942548631,24.45319974,148.2,148.17,0.063]
[1745942549410,31.34260003,148.21,148.17,24.51619974]
[1745942549633,24.45319974,148.19,148.17,0.063]
[1745942550525,24.45319974,148.18,148.17,0.063]
[1745942551144,24.45319974,148.19,148.17,0.063]
[1745942551315,6.74800998,148.2,148.17,0.063]
[1745942551515,24.45319974,148.19,148.17,0.063]
[1745942553543,24.45319974,148.2,148.17,0.063]
[1745942556045,13.46,148.21,148.17,0.063]
[1745942556248,13.46,148.21,148.18,24.45319974]
[1745942557344,13.46,148.21,148.18,31.20151765]
[1745942557645,13.46,148.21,148.19,15.30542819]
[1745942558439,15.30542819,148.2,148.17,0.063]
[1745942558618,15.30542819,148.18,148.17,0.063]
[1745942559420,22.05397725,148.18,148.17,0.063]
[1745942561353,23.80713882,148.18,148.17,0.063]
[1745942561553,33.01610014,148.18,148.17,0.063]
[1745942562226,38.04646421,148.18,148.17,0.063]
[1745942562635,56.69611307,148.18,148.17,0.063]
[1745942565547,38.04646421,148.18,148.17,0.063]
[1745942566659,5.03036407,148.18,148.17,0.063]
[1745942566954,36.29330264,148.18,148.17,0.063]
[1745942567941,36.43546421,148.18,148.17,0.063]
[1745942568656,55.08511307,148.18,148.17,0.063]